bitfinex/quotes_ETHUSD_20241225
["timestamp","ask_amount","ask_price","bid_price","bid_amount"]
[1735085465604,1.18662119,3494.9,3494.8,13.07139]
[1735085465778,1.33596003,3495.4,3495.1,2.86107]
[1735085465986,1.33596003,3495.4,3495.2,8.89706611]
[1735085466305,1.33596003,3495.4,3495.3,0.81]
[1735085466604,1.33596003,3495.4,3495.3,0.85706105]
[1735085466806,1.33596003,3495.4,3495.3,2.11387416]
[1735085467804,2.86017,3496.3,3495.3,10.96387416]
[1735085468306,3.0,3496.2,3495.3,10.96387416]
[1735085469176,2.86026,3496.2,3495.3,10.96387416]
[1735085471620,3.0,3496.3,3495.3,10.96387416]
[1735085471935,5.86027,3496.2,3495.4,1.38249142]
[1735085472311,5.86027,3496.2,3495.5,0.04491605]
[1735085474742,2.86016,3496.3,3495.5,0.04491605]
[1735085475102,3.0,3496.2,3495.5,0.04491605]
[1735085476309,2.86027,3496.2,3495.5,0.04491605]
[1735085476842,2.86027,3496.2,3495.7,0.81]
[1735085477047,3.0,3496.3,3495.7,0.81]
[1735085477343,3.0,3496.2,3495.8,0.04490088]
[1735085477709,2.86026,3496.2,3495.7,0.81]
[1735085478247,2.86026,3496.2,3495.8,0.04490088]
[1735085478407,0.286026,3496.1,3495.4,9.6053]
[1735085478613,2.86033,3496.1,3495.4,9.6053]
[1735085478913,2.86033,3496.1,3495.5,0.04472575]
[1735085479332,2.86073,3495.6,3495.5,0.04472575]
[1735085479645,2.86083,3495.5,3494.7,0.7578]
[1735085479851,2.86092,3495.4,3494.7,0.7578]
[1735085480051,2.86092,3495.4,3494.8,0.04460545]
[1735085480345,2.86074,3495.6,3494.8,0.04460545]
[1735085480846,0.8012,3495.7,3494.8,0.04460545]
[1735085481057,0.8012,3495.7,3494.9,0.7578]
[1735085481058,3.0,3495.7,3494.9,0.7578]
[1735085481237,3.0,3495.8,3495.0,0.46245354]
[1735085481438,3.0,3495.8,3495.0,0.50715843]
[1735085481644,2.86057,3495.8,3495.0,0.50715843]
[1735085482040,3.0,3495.7,3495.0,0.50715843]
[1735085484120,3.0,3495.7,3495.0,0.04470489]
[1735085484334,3.8012,3496.1,3495.0,0.04470489]
[1735085484560,2.861,3495.3,3495.0,0.04470489]
[1735085485721,2.861,3495.3,3494.9,0.7578]
[1735085486326,2.86115,3495.1,3494.3,8.85]
[1735085486527,2.86115,3495.1,3495.0,0.04471643]
[1735085486832,2.86115,3495.1,3494.4,0.7578]
[1735085486833,2.86125,3495.0,3494.4,0.7578]
[1735085487042,0.8012,3495.2,3494.4,0.7578]
[1735085487255,3.66227,3495.2,3494.5,0.04342654]
[1735085487431,2.86115,3495.1,3494.5,0.04342654]
[1735085490174,2.86115,3495.1,3494.5,1.00854919]
[1735085490380,2.86115,3495.1,3494.5,0.04342654]
[1735085493757,3.0,3495.2,3494.5,0.04342654]
[1735085495359,6.67364,3495.5,3494.5,0.04342654]
[1735085495585,3.8128,3495.5,3494.5,0.04342654]
[1735085497396,3.0,3495.2,3494.5,8.89342654]
[1735085497597,3.0,3495.2,3494.5,10.14473719]
[1735085500892,0.8128,3495.9,3494.7,0.8161]
[1735085501303,2.86069,3495.7,3494.8,0.04397656]
[1735085502702,2.86074,3495.6,3494.8,0.04397656]
[1735085503402,2.86074,3495.6,3494.8,8.89397656]
[1735085503603,2.86074,3495.6,3494.9,1.25716266]
[1735085503790,2.86074,3495.6,3495.0,0.0439203]
[1735085504190,2.86074,3495.6,3495.1,0.8161]
[1735085504396,2.86074,3495.6,3495.2,0.04391019]
[1735085506796,2.86059,3495.8,3495.2,0.04391019]
[1735085506969,3.0,3495.7,3495.2,0.04391019]
[1735085508890,3.0,3495.7,3495.2,1.1434884]
[1735085509421,4.04721119,3495.8,3495.2,1.1434884]
[1735085509422,1.18662119,3495.8,3495.2,1.1434884]
[1735085509586,1.18662119,3495.8,3495.3,0.8311]
[1735085509921,1.18662119,3495.8,3495.4,0.04339254]
[1735085510123,1.18662119,3495.9,3495.5,1.08240708]
[1735085510499,1.18662119,3495.9,3495.6,0.04338243]
[1735085511811,3.0,3496.0,3495.6,0.04338243]
[1735085512212,3.0,3496.0,3495.7,0.8311]
[1735085512412,3.0,3496.0,3495.8,0.04337232]
[1735085512661,5.86041,3496.0,3495.7,0.8311]
[1735085512862,5.86041,3496.0,3495.9,0.04336727]
[1735085513057,5.86041,3496.0,3495.5,1.08240708]
[1735085513058,3.0,3496.0,3495.8,0.04337232]
[1735085513204,2.86049,3495.9,3495.5,1.08240708]
[1735085513405,2.86049,3495.9,3495.6,0.04338243]
[1735085513648,1.18662119,3496.2,3495.6,0.04338243]
[1735085513966,1.18662119,3496.2,3495.3,8.85]
[1735085513967,0.8051,3495.9,3495.3,8.85]
[1735085514097,3.666,3495.4,3495.3,8.85]
[1735085514296,9.28780094,3495.4,3495.3,8.85]
[1735085515436,2.86131,3494.9,3494.8,1.19876256]
[1735085516146,2.86149,3494.7,3494.4,0.8311]
[1735085517405,2.86153,3494.7,3494.4,0.8311]
[1735085519346,4.19203178,3495.2,3494.4,0.8311]
[1735085519708,5.774086,3495.2,3494.4,0.8311]
[1735085519908,2.86152,3494.7,3494.4,0.8311]
[1735085521651,2.86152,3494.7,3494.5,0.04051087]
[1735085521841,2.8613,3495.0,3494.5,0.04051087]
[1735085522146,2.86135,3494.9,3494.5,0.04051087]
[1735085522355,2.8614,3494.8,3494.5,0.04051087]
[1735085522949,2.86148,3494.7,3494.5,0.04051087]
[1735085523122,2.86155,3494.6,3494.5,0.04051087]
[1735085523327,2.86171,3494.5,3494.0,0.7552]
[1735085523826,2.86171,3494.5,3494.1,0.04053111]
[1735085524020,2.86171,3494.5,3494.0,0.7552]
[1735085524226,2.86171,3494.5,3494.1,0.04053111]
[1735085524456,2.86171,3494.5,3494.0,0.7552]
[1735085524653,2.86171,3494.5,3494.2,0.04052605]
[1735085524848,2.86171,3494.5,3494.0,0.7552]
[1735085525153,2.86171,3494.5,3494.3,0.04052099]
[1735085525315,2.86171,3494.5,3494.0,0.7552]
[1735085525823,2.86171,3494.5,3494.1,0.04053111]
[1735085526140,2.86172,3494.4,3494.0,0.7552]
[1735085526342,2.86172,3494.4,3494.2,0.04052605]
[1735085526542,2.86172,3494.4,3494.1,0.04053111]
[1735085526743,2.86172,3494.4,3494.3,0.04052099]
[1735085526945,2.86172,3494.4,3494.2,0.04052605]
[1735085527114,2.86172,3494.4,3494.0,0.7552]
[1735085527311,2.86172,3494.4,3494.3,0.04052099]
[1735085527655,3.8162,3494.2,3493.4,0.7552]
[1735085528031,2.86217,3493.9,3493.4,0.7552]
[1735085528231,2.86233,3493.7,3493.4,0.7552]
[1735085528455,2.62180094,3493.5,3493.3,1.19876256]
[1735085528616,6.12472009,3493.4,3493.3,1.19876256]
[1735085529144,6.12472009,3493.4,3493.2,1.79814385]
[1735085529145,2.86295,3492.9,3492.8,1.19876256]
[1735085529339,5.86295,3492.9,3492.8,1.19876256]
[1735085529542,6.67915,3492.9,3492.8,1.19876256]
[1735085529943,6.67915,3492.9,3492.8,2.56e-06]
[1735085530259,7.22931,3492.7,3492.6,6.41e-06]
[1735085530557,9.85111094,3492.7,3492.6,6.41e-06]
[1735085531164,9.85111094,3492.7,3491.3,10.04856967]
[1735085531165,6.43800094,3492.7,3491.3,10.04856967]
[1735085531346,5.62180094,3492.4,3491.3,10.04856967]
[1735085531552,5.62180094,3492.4,3491.4,1.08037697]
[1735085531750,2.86362,3492.1,3491.4,1.08037697]
[1735085531952,8.48523094,3492.4,3491.4,1.08037697]
[1735085532150,2.86328,3492.5,3491.5,0.7552]
[1735085533963,3.0,3492.6,3491.6,8.85]
[1735085534152,5.86321,3492.6,3491.7,1.35782929]
[1735085534542,2.86312,3492.7,3491.8,0.7552]
[1735085534745,2.86321,3492.6,3491.8,0.7552]
[1735085536984,5.863,3492.9,3491.8,0.7552]
[1735085537186,2.86313,3492.7,3491.9,1.38269993]
[1735085537483,3.0,3492.9,3491.9,1.38269993]
[1735085537686,5.48473094,3493.0,3492.0,9.6166]
[1735085538194,2.62180094,3493.0,3492.0,9.6166]
[1735085538781,3.0,3492.9,3492.0,9.6166]
[1735085538946,3.7766,3492.6,3492.0,8.85]
[1735085539146,2.86356,3492.2,3491.6,0.7909]
[1735085539381,2.86361,3492.1,3491.6,0.7909]
[1735085539972,2.86342,3492.4,3491.6,0.7909]
[1735085541669,3.7766,3492.6,3491.6,0.7909]
[1735085541875,3.0,3492.9,3491.8,0.7909]
[1735085542055,2.86319,3492.7,3491.9,0.96409]
[1735085542262,3.0,3492.6,3491.9,0.96409]
[1735085542665,3.0,3492.6,3492.0,0.04011067]
[1735085544659,4.19503198,3494.0,3492.1,0.7909]
[1735085544660,2.8627,3493.2,3492.1,0.7909]
[1735085544859,2.62180094,3492.6,3492.1,0.04010561]
[1735085545064,2.86371,3492.0,3491.3,0.7909]
[1735085547668,3.64034,3492.0,3491.3,0.7909]
[1735085547871,2.864,3491.7,3491.3,0.7909]
[1735085548096,2.86402,3491.6,3490.8,0.7909]
[1735085548305,2.86402,3491.6,3490.9,1.21904856]
[1735085548504,3.0,3491.6,3490.8,1.36133727]
[1735085548701,2.86442,3491.1,3490.8,0.57043727]
[1735085549510,3.39840094,3491.4,3490.3,0.7909]
[1735085549700,2.86451,3491.0,3490.3,0.7909]
[1735085550808,3.0,3491.1,3490.3,0.7909]
[1735085551172,2.86437,3491.2,3490.3,1.156514]
[1735085551376,0.7766,3491.4,3490.3,1.156514]
[1735085551377,3.0,3491.1,3490.3,1.156514]
[1735085551674,2.86453,3491.0,3490.3,0.7909]
[1735085552113,3.7766,3491.4,3490.3,0.7909]
[1735085552114,2.86469,3490.8,3490.3,0.7909]
[1735085552363,3.0,3491.3,3489.8,8.85]
[1735085552364,3.0,3491.0,3489.8,0.7909]
[1735085552612,3.0,3491.0,3489.0,2.62180094]
[1735085552613,2.86524,3490.2,3489.1,9.6106]
[1735085552914,2.86524,3490.2,3489.3,8.85]
[1735085553119,2.86524,3490.1,3489.3,8.85]
[1735085553294,2.86524,3490.1,3489.4,0.04042735]
[1735085553694,3.0,3490.2,3489.4,0.04042735]
[1735085553908,3.0,3490.2,3489.4,1.31835209]
[1735085554107,2.62180094,3490.8,3489.4,1.31835209]
[1735085554108,3.0,3490.7,3489.5,0.7606]
[1735085554295,3.0,3490.4,3489.5,0.80102227]
[1735085555482,2.86467,3490.8,3489.6,9.6106]
[1735085555687,2.86483,3490.7,3489.7,1.3794747]
[1735085555879,5.86485,3490.6,3489.7,1.41988683]
[1735085556116,2.86485,3490.6,3489.7,1.41988683]
[1735085557428,2.86485,3490.6,3489.7,10.26988683]
[1735085560153,3.0,3490.6,3489.7,8.89041213]
[1735085560437,2.86528,3490.1,3489.7,0.04041213]
[1735085561734,3.0,3490.3,3489.7,0.04041213]
[1735085561937,5.86486,3490.6,3489.7,0.04041213]
[1735085562231,5.86486,3490.6,3489.8,0.7606]
[1735085562599,5.86486,3490.6,3489.9,0.04310181]
[1735085563233,5.86486,3490.6,3489.8,0.7606]
[1735085563594,5.86486,3490.6,3489.9,0.04309602]
[1735085565748,3.0,3490.7,3489.9,0.04309602]
[1735085565933,2.86483,3490.6,3489.9,0.04309602]
[1735085566464,0.7766,3490.9,3489.9,0.04309602]
[1735085566664,2.86493,3490.5,3489.9,0.04309602]
[1735085567459,3.0,3490.6,3489.9,0.04309602]
[1735085569133,2.86487,3490.6,3489.9,0.04309602]
[1735085571249,2.86487,3490.6,3490.0,0.814]
[1735085571464,2.86487,3490.6,3490.1,0.04287763]
[1735085572590,2.86465,3490.9,3490.1,0.22467139]
[1735085572880,2.86442,3491.1,3490.1,0.22467139]
[1735085573088,2.86459,3490.9,3490.1,0.22467139]
[1735085573588,3.0,3490.8,3490.2,0.814]
[1735085573885,3.0,3490.8,3490.3,0.04267662]
[1735085574582,3.8292,3491.2,3490.3,0.04267662]
[1735085574788,4.03774672,3491.6,3490.4,0.814]
[1735085574986,2.86445,3491.1,3490.4,0.814]
[1735085575181,2.86445,3491.1,3490.5,0.04246984]
[1735085579694,2.86451,3491.0,3490.5,0.04246984]
[1735085579855,2.86451,3491.0,3490.4,0.814]
[1735085580077,2.86451,3491.0,3490.5,0.04246984]
[1735085580273,2.86461,3490.9,3490.5,0.04246984]
[1735085580493,2.86468,3490.8,3490.4,0.814]
[1735085580674,3.0,3490.8,3490.1,0.814]
[1735085580899,3.0,3490.6,3490.5,0.04076721]
[1735085581074,3.0,3490.6,3490.1,0.814]
[1735085581299,2.86509,3490.3,3490.1,0.814]
[1735085581502,2.86509,3490.3,3490.0,8.85]
[1735085581705,2.86509,3490.3,3490.2,0.04078242]
[1735085581890,2.86509,3490.3,3490.0,8.85]
[1735085582321,2.86509,3490.3,3490.1,0.0407875]
[1735085582492,2.86509,3490.3,3490.0,8.85]
[1735085582693,3.0,3490.2,3489.8,0.814]
[1735085583294,1.26021319,3490.6,3489.8,0.814]
[1735085583295,2.865,3490.4,3489.8,0.814]
[1735085583515,3.0,3490.3,3489.8,0.814]
[1735085583755,3.57752132,3490.4,3489.8,0.814]
[1735085583756,3.0,3490.4,3489.8,0.814]
[1735085584185,5.86507,3490.4,3489.8,0.814]
[1735085584779,2.86482,3490.7,3489.8,0.814]
[1735085584984,3.0,3490.6,3489.8,0.814]
[1735085585420,1.18637121,3491.1,3490.1,0.7824]
[1735085585595,2.86466,3490.9,3490.1,1.20871598]
[1735085586002,2.86467,3490.8,3490.1,1.20871598]
[1735085586283,2.86454,3491.0,3490.2,0.7824]
[1735085586596,3.0,3490.9,3490.2,0.7824]
[1735085587186,3.0,3490.9,3490.2,2.0748096]
[1735085587386,2.8646,3490.9,3490.2,2.0748096]
[1735085587716,2.8646,3490.9,3490.3,0.04112412]
[1735085588525,0.7995,3491.1,3490.3,0.04112412]
[1735085588843,2.86498,3490.5,3490.0,8.85]
[1735085589348,2.86498,3490.5,3490.1,0.04083372]
[1735085590750,2.86498,3490.5,3489.9,0.7824]
[1735085590902,2.86498,3490.5,3490.2,0.04082865]
[1735085591254,2.86498,3490.5,3489.9,0.7824]
[1735085591470,2.86498,3490.5,3490.3,0.04082358]
[1735085591773,2.86498,3490.5,3489.9,0.7824]
[1735085591935,2.86498,3490.5,3490.4,0.04081851]
[1735085592268,2.86498,3490.5,3489.9,0.7824]
[1735085592617,2.86498,3490.5,3490.0,0.0408388]
[1735085595077,0.9469485,3490.4,3490.0,0.0408388]
[1735085596373,2.13331971,3490.4,3490.0,0.0408388]
[1735085597066,2.13331971,3490.4,3490.1,0.7824]
[1735085597458,3.55462045,3490.5,3490.3,0.7816]
[1735085597863,3.55462045,3490.5,3490.4,0.04114213]
[1735085598778,3.55462045,3490.9,3490.4,0.04114213]
[1735085598935,3.55462045,3490.9,3490.3,0.7816]
[1735085599135,3.55462045,3490.9,3490.5,0.04096947]
[1735085599374,3.55462045,3490.9,3490.3,0.7816]
[1735085599605,3.55462045,3490.9,3490.6,0.0409644]
[1735085599798,1.18637121,3490.8,3490.3,0.7816]
[1735085599937,1.18637121,3490.8,3490.7,0.04095933]
[1735085600138,1.18637121,3490.8,3490.3,0.7816]
[1735085600367,1.18637121,3490.8,3490.7,0.04095933]
[1735085600638,2.21154409,3490.8,3490.3,0.7816]
[1735085600852,2.8649,3490.6,3490.1,8.85]
[1735085601276,0.757,3490.7,3490.1,8.85]
[1735085601789,1.18637121,3490.8,3490.1,8.85]
[1735085601936,1.18637121,3490.8,3490.2,0.7816]
[1735085602138,1.18637121,3490.8,3490.3,1.249688]
[1735085602439,1.42130074,3490.6,3490.3,1.249688]
[1735085603000,1.42130074,3490.6,3490.4,0.04102655]
[1735085603350,2.86491,3490.5,3490.4,0.04102655]
[1735085603552,2.17830074,3490.6,3490.1,8.85]
[1735085603553,0.757,3490.6,3490.1,8.85]
[1735085603789,3.0,3490.2,3489.8,1.19437634]
[1735085604611,0.48080512,3490.5,3489.8,1.19437634]
[1735085605000,3.0,3490.3,3489.8,1.19437634]
[1735085605293,1.18637121,3490.2,3489.7,0.7816]
[1735085606480,7.05147121,3490.3,3489.7,0.7816]
[1735085607180,2.86518,3490.2,3489.7,0.7816]
[1735085607594,4.25843702,3490.2,3489.7,0.7816]
[1735085608118,4.39325702,3490.2,3489.7,0.7816]
[1735085609094,0.8015,3490.1,3489.4,8.85]
[1735085609306,0.8015,3490.1,3489.4,10.28102871]
[1735085609704,2.86519,3490.2,3489.4,10.28102871]
[1735085610639,4.98787121,3490.3,3489.4,8.85]
[1735085610640,2.8654,3490.0,3489.4,8.85]
[1735085610822,2.86543,3489.9,3489.4,8.85]
[1735085611142,0.8015,3490.2,3489.4,8.85]
[1735085611276,2.86549,3489.8,3489.4,8.85]
[1735085611479,2.86567,3489.6,3489.2,0.8239]
[1735085611719,2.86567,3489.6,3489.1,1.19437634]
[1735085611720,3.0,3489.9,3489.1,1.19437634]
[1735085611923,3.0,3489.9,3488.9,2.01827634]
[1735085611924,2.86552,3489.8,3488.9,2.01827634]
[1735085612450,2.8656,3489.7,3488.9,2.01827634]
[1735085612776,7.05167121,3490.1,3488.9,2.01827634]
[1735085612979,2.86584,3489.4,3488.9,2.01827634]
[1735085613224,2.86584,3489.4,3488.9,0.8239]
[1735085615223,4.85355121,3489.6,3488.9,0.8239]
[1735085615523,2.86577,3489.5,3488.9,0.8239]
[1735085617131,3.66722,3489.6,3488.9,0.8239]
[1735085617433,2.86572,3489.6,3488.9,1.15525433]
[1735085617586,1.18637121,3489.7,3489.0,0.04228264]
[1735085618026,1.18637121,3489.7,3489.1,0.8239]
[1735085618394,1.18637121,3489.7,3489.2,0.04226093]
[1735085618601,1.18637121,3489.9,3489.2,0.44861946]
[1735085619027,1.18637121,3489.9,3489.3,0.8239]
[1735085619390,1.18637121,3489.9,3489.4,0.04218139]
[1735085619584,1.18637121,3489.9,3489.3,0.8239]
[1735085619791,2.86526,3490.1,3489.5,0.04200865]
[1735085620020,2.86526,3490.1,3489.3,0.8239]
[1735085620327,3.64849312,3490.1,3489.6,0.04200358]
[1735085620532,3.64849312,3490.1,3489.3,0.8239]
[1735085620840,3.64849312,3490.1,3489.7,0.04199851]
[1735085621126,3.64849312,3490.1,3489.3,0.8239]
[1735085621321,3.64849312,3490.1,3489.8,0.04199343]
[1735085621538,0.66484931,3490.0,3489.8,0.04199343]
[1735085621743,0.66484931,3490.0,3489.3,0.8239]
[1735085622242,2.86526,3490.1,3489.4,0.04201372]
[1735085624047,4.18637121,3490.3,3489.5,0.8239]
[1735085624270,1.18637121,3490.3,3489.7,3.68946]
[1735085624746,1.18637121,3490.3,3489.9,0.8239]
[1735085625046,1.18637121,3490.3,3490.0,0.04190236]
[1735085625651,1.18637121,3490.3,3490.1,9.6739]
[1735085625839,1.18637121,3490.8,3490.1,9.6739]
[1735085626007,1.18637121,3490.8,3490.2,0.04146441]
[1735085626346,1.18637121,3490.8,3490.3,0.8239]
[1735085626515,1.18637121,3490.8,3490.4,1.29950571]
[1735085627323,1.18637121,3490.8,3490.4,0.04145427]
[1735085627511,5.23716242,3491.1,3490.4,0.04145427]
[1735085627512,5.44138755,3491.1,3490.4,0.04145427]
[1735085629168,2.86442,3491.1,3490.4,0.04145427]
[1735085632765,1.18637121,3491.2,3490.4,0.04145427]
[1735085632969,1.18637121,3491.2,3490.5,0.7663]
[1735085633280,1.18637121,3491.2,3490.6,0.04099911]
[1735085633789,3.0,3491.4,3490.6,0.04099911]
[1735085634087,1.96707121,3491.5,3490.6,0.40823402]
[1735085634584,4.83116121,3491.5,3490.6,0.40823402]
[1735085635090,3.64479,3491.5,3490.6,0.40823402]
[1735085636494,3.64479,3491.5,3490.6,0.04099911]
[1735085636678,3.0,3491.0,3490.6,0.04099911]
[1735085637048,3.0,3491.0,3490.5,0.7663]
[1735085637455,3.0,3491.0,3490.6,0.04037501]
[1735085637968,3.0,3491.0,3490.5,0.7663]
[1735085638195,3.586449,3491.0,3490.5,0.7663]
[1735085638753,3.586449,3491.0,3490.6,0.04048687]
[1735085638954,3.586449,3491.0,3490.5,0.7663]
[1735085639254,4.18637121,3491.4,3490.6,0.0394902]
[1735085639481,3.0,3491.1,3490.6,0.0394902]
[1735085639880,3.0,3491.1,3490.5,0.7663]
[1735085640082,3.0,3491.1,3490.7,0.03950247]
[1735085640317,3.0,3491.1,3490.6,0.03950753]
[1735085640529,3.28307712,3491.1,3490.8,0.0394974]
[1735085640833,3.28307712,3491.1,3490.9,0.03949233]
[1735085640994,3.28307712,3491.1,3490.5,0.7663]
[1735085641193,3.28307712,3491.1,3490.6,0.03950753]
[1735085641420,3.28307712,3491.1,3490.5,0.7663]
[1735085641639,3.28307712,3491.1,3490.6,0.03950753]
[1735085641930,3.0,3491.2,3490.5,0.7663]
[1735085642137,2.86428,3491.3,3490.7,0.03950247]
[1735085642432,2.86428,3491.3,3490.8,0.03948006]
[1735085642634,2.86428,3491.3,3490.5,0.7663]
[1735085642937,3.7807,3491.5,3490.6,0.0394902]
[1735085643235,2.86436,3491.2,3490.6,0.0394902]
[1735085647941,3.0,3491.3,3490.7,0.8006]
[1735085648108,1.18637121,3491.5,3490.7,0.8006]
[1735085648317,4.18637121,3491.6,3490.9,0.8006]
[1735085648497,4.18637121,3491.6,3491.0,0.37047654]
[1735085648703,1.18637121,3491.6,3491.0,0.4099118]
[1735085649039,1.18637121,3491.6,3491.1,2.89305249]
[1735085649201,1.18637121,3491.6,3491.2,0.8006]
[1735085649396,1.18637121,3491.6,3491.2,0.84001359]
[1735085649644,1.18637121,3491.6,3491.2,1.25036785]
[1735085649946,1.18637121,3491.6,3491.3,0.8006]
[1735085650322,1.18637121,3491.6,3491.5,0.8006]
[1735085650524,4.18637121,3492.3,3491.5,0.8006]
[1735085650700,1.18637121,3492.3,3491.5,0.83962292]
[1735085651103,1.18637121,3492.3,3491.5,1.21000121]
[1735085652216,5.86337,3492.4,3491.5,9.68962292]
[1735085653712,3.0,3492.4,3491.5,9.68962292]
[1735085654055,3.0,3492.1,3491.5,9.68962292]
[1735085654256,2.86401,3491.6,3491.5,0.03902292]
[1735085654440,0.787,3491.5,3490.6,0.8006]
[1735085654613,2.86427,3491.3,3490.6,0.8006]
[1735085656482,3.65112,3491.5,3490.6,0.8006]
[1735085656672,3.0,3491.4,3490.6,0.8006]
[1735085657169,3.0,3491.4,3490.6,2.052156]
[1735085657728,2.86418,3491.4,3490.6,2.052156]
[1735085657927,3.0,3491.3,3490.6,0.8006]
[1735085658767,5.86426,3491.3,3490.6,0.8006]
[1735085658943,2.86426,3491.3,3490.6,0.8006]
[1735085659462,3.8062,3491.1,3490.4,9.6242]
[1735085659670,3.8062,3491.1,3490.4,0.7742]
[1735085660230,7.337696,3491.1,3490.4,0.7742]
[1735085660432,1.473256,3491.1,3490.4,0.7742]
[1735085660771,3.0,3491.2,3490.4,0.7742]
[1735085661643,3.8062,3491.4,3490.4,0.7742]
[1735085662347,3.0,3491.3,3490.4,0.7742]
[1735085662670,3.0,3491.3,3490.5,8.88730042]
[1735085663198,5.86426,3491.3,3490.5,8.88730042]
[1735085663366,3.8062,3491.4,3490.5,9.91204505]
[1735085663702,3.0,3491.3,3490.5,9.91204505]
[1735085667202,5.86426,3491.3,3490.5,0.03730042]
[1735085667499,2.8647,3490.8,3490.5,0.03730042]
[1735085667904,2.8647,3490.8,3490.4,0.7742]
[1735085668202,2.8647,3490.8,3490.5,0.03736396]
[1735085668500,2.62180094,3491.3,3490.2,0.7742]
[1735085668501,0.8062,3490.9,3490.2,0.7742]
[1735085668701,2.86483,3490.7,3490.6,0.03735889]
[1735085668906,2.86483,3490.7,3490.2,0.7742]
[1735085669306,2.86483,3490.7,3490.3,0.03753587]
[1735085669802,2.86483,3490.7,3490.2,0.7742]
[1735085670027,2.86483,3490.7,3490.4,0.03792366]
[1735085670168,2.86483,3490.7,3490.2,0.7742]
[1735085670368,2.86483,3490.7,3490.3,0.03792873]
[1735085670606,2.86483,3490.7,3490.2,0.7742]
[1735085670766,2.86483,3490.7,3490.4,0.03792366]
[1735085670966,2.86483,3490.7,3490.2,0.7742]
[1735085671166,2.86483,3490.7,3490.3,0.03792873]
[1735085671499,2.86483,3490.7,3490.2,0.7742]
[1735085671893,2.86483,3490.7,3490.3,0.03792873]
[1735085672707,7.2166,3490.4,3490.3,0.03792873]
[1735085673061,3.55,3490.3,3489.4,1.19437634]
[1735085673304,2.86529,3490.1,3489.4,1.19437634]
[1735085673630,3.0,3490.3,3489.5,0.7625]
[1735085673631,5.8651,3490.3,3489.5,0.7625]
[1735085674011,2.8651,3490.3,3489.5,0.7625]
[1735085674302,1.3698082,3490.2,3489.6,0.19568763]
[1735085676066,2.8651,3490.3,3489.6,0.19568763]
[1735085676513,3.8016,3490.4,3489.6,0.19568763]
[1735085676706,3.0,3490.4,3489.6,0.19568763]
[1735085677178,4.85274121,3490.7,3489.7,0.7625]
[1735085677377,3.0,3490.6,3489.7,0.7625]
[1735085677597,4.05114121,3490.7,3489.7,0.7625]
[1735085677829,4.05114121,3490.7,3489.8,0.0317766]
[1735085678039,4.05114121,3490.7,3489.9,0.7625]
[1735085678344,4.05114121,3490.7,3489.9,0.79427152]
[1735085678542,2.86477,3490.7,3489.9,0.79427152]
[1735085678757,2.86477,3490.7,3489.9,0.7625]
[1735085679930,3.0,3490.8,3489.9,0.7625]
[1735085680131,3.8016,3491.0,3489.9,0.7625]
[1735085680337,3.0,3490.7,3490.0,0.03176645]
[1735085685579,3.0,3490.8,3490.0,0.03176645]
[1735085687976,2.86459,3490.9,3490.0,0.03176645]
[1735085688376,2.86459,3490.9,3490.1,0.7878]
[1735085688873,2.86459,3490.9,3490.2,0.03188338]
[1735085689089,1.18637121,3491.2,3490.3,0.7878]
[1735085689382,1.18637121,3491.2,3490.5,0.7878]
[1735085689545,1.18637121,3491.2,3490.7,0.7878]
[1735085689932,1.18637121,3491.2,3490.8,0.03185296]
[1735085690377,1.18637121,3491.2,3490.7,0.7878]
[1735085690578,3.0,3491.4,3490.9,0.03184789]
[1735085690745,3.0,3491.4,3490.7,0.7878]
[1735085690943,3.0,3491.6,3490.8,0.03160468]
[1735085691162,3.0,3491.6,3490.7,1.153062]
[1735085691599,3.0,3491.6,3490.8,0.03160468]
[1735085691784,3.0,3491.6,3490.7,4.017812]
[1735085691975,3.0,3491.6,3490.8,0.03158736]
[1735085692294,3.0,3491.6,3490.9,0.7878]
[1735085692587,3.0,3491.6,3491.0,0.03157722]
[1735085692778,1.18637121,3491.8,3491.1,0.7878]
[1735085693001,1.18637121,3491.9,3491.1,0.7878]
[1735085693200,1.18637121,3491.9,3491.3,0.7878]
[1735085693601,1.18637121,3491.9,3491.4,0.03152231]
[1735085694419,3.0,3492.2,3491.4,0.03152231]
[1735085694626,4.18637121,3492.3,3491.3,0.7878]
[1735085694916,2.86362,3492.1,3491.5,0.03151724]
[1735085695080,0.8266,3492.0,3491.4,0.03152231]
[1735085695282,2.86362,3492.1,3491.3,0.7878]
[1735085695477,2.86362,3492.1,3491.5,0.03151724]
[1735085695680,2.86362,3492.1,3491.3,0.7878]
[1735085695878,4.18637121,3492.3,3491.7,0.7878]
[1735085696118,3.8266,3492.4,3491.7,0.7878]
[1735085696321,3.8266,3492.4,3491.8,0.03150204]
[1735085697620,0.8266,3492.4,3491.8,0.03150204]
[1735085697820,3.68997,3492.4,3491.8,0.03150204]
[1735085698027,3.0,3492.3,3491.8,0.03150204]
[1735085698223,3.0,3492.3,3491.7,0.7878]
[1735085698398,2.86371,3492.0,3491.9,0.03072334]
[1735085698722,2.86371,3492.0,3491.5,8.85]
[1735085699026,2.86371,3492.0,3491.6,0.03073854]
[1735085700232,0.68353252,3492.0,3491.6,0.03073854]
[1735085700531,2.86412,3491.5,3490.8,0.7878]
[1735085700892,2.86412,3491.5,3490.9,0.03049118]
[1735085701936,3.0,3491.6,3490.9,0.03049118]
[1735085702108,5.86402,3491.6,3490.9,0.03049118]
[1735085702301,3.44840094,3491.9,3491.0,0.7878]
[1735085702302,0.8266,3491.9,3491.0,0.7878]
[1735085702502,3.0,3491.6,3491.0,0.7878]
[1735085702709,3.0,3491.6,3491.1,0.03059647]
[1735085703247,3.73737825,3491.8,3491.1,0.03059647]
[1735085703446,2.86401,3491.6,3491.1,0.03059647]
[1735085704743,3.0,3491.7,3491.1,0.03059647]
[1735085705509,2.86385,3491.8,3491.1,1.28389812]